[Event "*** SCC Grand Prix: Titled Tuesday Blitz"]
[Site "Chess.com"]
[Date "2020.08.11"]
[Round "3"]
[White "chito89"]
[Black "grunbergmihai"]
[Result "1-0"]
[WhiteElo "2744"]
[BlackElo "2439"]
[TimeControl "180+1"]
[EndTime "10:26:46 PDT"]
[Termination "chito89 won by resignation"]

1. e4 {[%clk 0:03:00.9]} 1... Nc6 {[%clk 0:03:00.9]} 2. Nf3 {[%clk 0:02:58.7]}
2... d5 {[%clk 0:02:57.8]} 3. exd5 {[%clk 0:02:57.2]} 3... Qxd5 {[%clk
0:02:57.7]} 4. Be2 {[%clk 0:02:45.8]} 4... Bg4 {[%clk 0:02:56.5]} 5. h3 {[%clk
0:02:44.2]} 5... Bxf3 {[%clk 0:02:54.4]} 6. Bxf3 {[%clk 0:02:42.7]} 6... Qe6+
{[%clk 0:02:52.2]} 7. Qe2 {[%clk 0:02:37.4]} 7... Nd4 {[%clk 0:02:44.6]} 8. Qxe6
{[%clk 0:02:30.9]} 8... Nxf3+ {[%clk 0:02:43.7]} 9. gxf3 {[%clk 0:02:31.8]} 9...
fxe6 {[%clk 0:02:44.6]} 10. d4 {[%clk 0:02:29.9]} 10... O-O-O {[%clk 0:02:44.2]}
11. c3 {[%clk 0:02:29.6]} 11... g6 {[%clk 0:02:42.5]} 12. Na3 {[%clk 0:02:27.6]}
12... Bg7 {[%clk 0:02:40.5]} 13. Nc4 {[%clk 0:02:26.2]} 13... Nf6 {[%clk
0:02:33.6]} 14. O-O {[%clk 0:02:24]} 14... Rhf8 {[%clk 0:02:31.5]} 15. Re1
{[%clk 0:02:23.4]} 15... Nd5 {[%clk 0:02:28.8]} 16. Kg2 {[%clk 0:02:20.6]} 16...
Rf6 {[%clk 0:02:21.9]} 17. Bg5 {[%clk 0:02:16.1]} 17... Rf5 {[%clk 0:02:21.1]}
18. Bd2 {[%clk 0:02:17]} 18... Rdf8 {[%clk 0:02:18.2]} 19. Rxe6 {[%clk
0:01:59.3]} 19... Rxf3 {[%clk 0:02:17.4]} 20. Rf1 {[%clk 0:02:00.2]} 20... Rd3
{[%clk 0:02:03.3]} 21. Re2 {[%clk 0:01:48.7]} 21... b5 {[%clk 0:01:56]} 22. Na5
{[%clk 0:01:44.7]} 22... Kd7 {[%clk 0:01:49.1]} 23. Nb3 {[%clk 0:01:43.5]} 23...
Rdf3 {[%clk 0:01:45.7]} 24. Nc5+ {[%clk 0:01:42.4]} 24... Kc8 {[%clk 0:01:42.6]}
25. Ne6 {[%clk 0:01:42]} 25... Bh8 {[%clk 0:01:30.3]} 26. Nxf8 {[%clk
0:01:39.4]} 26... Rxf8 {[%clk 0:01:31.2]} 27. Rfe1 {[%clk 0:01:38.4]} 27... Kd7
{[%clk 0:01:31]} 28. b3 {[%clk 0:01:34.7]} 28... c6 {[%clk 0:01:25.7]} 29. c4
{[%clk 0:01:32.8]} 29... bxc4 {[%clk 0:01:24.6]} 30. bxc4 {[%clk 0:01:33.7]}
30... Nf4+ {[%clk 0:01:24.7]} 31. Bxf4 {[%clk 0:01:32.8]} 31... Rxf4 {[%clk
0:01:25.6]} 32. Rxe7+ {[%clk 0:01:32.5]} 1-0

[Event "*** SCC Grand Prix: Titled Tuesday Blitz"]
[Site "Chess.com"]
[Date "2020.08.11"]
[Round "3"]
[White "Revnov"]
[Black "arminmusovic"]
[Result "1-0"]
[WhiteElo "2759"]
[BlackElo "2491"]
[TimeControl "180+1"]
[EndTime "10:27:03 PDT"]
[Termination "Revnov won by resignation"]

1. e4 {[%clk 0:03:00.9]} 1... c6 {[%clk 0:03:00]} 2. Nf3 {[%clk 0:03:00.7]} 2...
d5 {[%clk 0:03:00.9]} 3. exd5 {[%clk 0:03:00.6]} 3... cxd5 {[%clk 0:03:01.8]} 4.
d4 {[%clk 0:03:01]} 4... a6 {[%clk 0:03:02.5]} 5. Ne5 {[%clk 0:03:00.1]} 5...
Nc6 {[%clk 0:03:02.6]} 6. c4 {[%clk 0:02:59.5]} 6... Nf6 {[%clk 0:03:02.2]} 7.
Nc3 {[%clk 0:02:58.9]} 7... e6 {[%clk 0:02:53.1]} 8. Bf4 {[%clk 0:02:40.9]} 8...
Qb6 {[%clk 0:02:42.7]} 9. Nxc6 {[%clk 0:02:25.3]} 9... bxc6 {[%clk 0:02:42.7]}
10. c5 {[%clk 0:02:22.8]} 10... Qxb2 {[%clk 0:02:23]} 11. Rc1 {[%clk 0:02:19.2]}
11... Be7 {[%clk 0:02:07.2]} 12. Be2 {[%clk 0:02:08.5]} 12... O-O {[%clk
0:01:54.9]} 13. O-O {[%clk 0:02:02.6]} 13... Bd7 {[%clk 0:01:34.6]} 14. Na4
{[%clk 0:01:59.9]} 14... Qxa2 {[%clk 0:01:22.8]} 15. Ra1 {[%clk 0:01:40.7]}
15... Qxa1 {[%clk 0:01:16.6]} 16. Qxa1 {[%clk 0:01:39.5]} 16... Bd8 {[%clk
0:00:35.3]} 17. Nb6 {[%clk 0:01:37.6]} 17... Ra7 {[%clk 0:00:34.3]} 18. Bb8
{[%clk 0:01:34.4]} 18... Rb7 {[%clk 0:00:32.1]} 19. Bd6 {[%clk 0:01:34.4]} 1-0

[Event "*** SCC Grand Prix: Titled Tuesday Blitz"]
[Site "Chess.com"]
[Date "2020.08.11"]
[Round "3"]
[White "Infernal_XaM"]
[Black "12teen"]
[Result "1-0"]
[WhiteElo "2919"]
[BlackElo "2677"]
[TimeControl "180+1"]
[EndTime "10:27:08 PDT"]
[Termination "Infernal_XaM won by resignation"]

1. d4 {[%clk 0:03:00.9]} 1... d5 {[%clk 0:03:00.1]} 2. Nf3 {[%clk 0:03:00.6]}
2... Nf6 {[%clk 0:02:59.9]} 3. c4 {[%clk 0:03:00.5]} 3... e6 {[%clk 0:03:00.1]}
4. g3 {[%clk 0:02:59.1]} 4... b6 {[%clk 0:02:56.4]} 5. cxd5 {[%clk 0:02:57.1]}
5... exd5 {[%clk 0:02:56.4]} 6. Bg2 {[%clk 0:02:55.5]} 6... Bb7 {[%clk 0:02:57]}
7. O-O {[%clk 0:02:55.7]} 7... Be7 {[%clk 0:02:55.3]} 8. Nc3 {[%clk 0:02:56.1]}
8... O-O {[%clk 0:02:55.8]} 9. Ne5 {[%clk 0:02:55.4]} 9... c6 {[%clk 0:02:56.1]}
10. e4 {[%clk 0:02:52.6]} 10... Nbd7 {[%clk 0:02:54.1]} 11. Nxd7 {[%clk
0:02:47.1]} 11... Qxd7 {[%clk 0:02:54.4]} 12. e5 {[%clk 0:02:47.2]} 12... Ne8
{[%clk 0:02:54]} 13. f4 {[%clk 0:02:46.2]} 13... Nc7 {[%clk 0:02:53.9]} 14. f5
{[%clk 0:02:44.4]} 14... Rfe8 {[%clk 0:02:46.1]} 15. Qh5 {[%clk 0:02:34.9]}
15... Bf8 {[%clk 0:02:35.2]} 16. f6 {[%clk 0:02:04.5]} 16... g6 {[%clk
0:02:33.1]} 17. Qh4 {[%clk 0:02:04]} 17... Ne6 {[%clk 0:02:12.4]} 18. Bh6 {[%clk
0:02:01.6]} 18... Kh8 {[%clk 0:01:39.2]} 19. Bh3 {[%clk 0:01:59.4]} 19... c5
{[%clk 0:01:22.5]} 20. Rf4 {[%clk 0:01:41.4]} 20... cxd4 {[%clk 0:00:26.9]} 21.
Bxf8 {[%clk 0:01:39.9]} 21... Rxf8 {[%clk 0:00:27.5]} 22. Qh6 {[%clk 0:01:39.5]}
22... g5 {[%clk 0:00:27.9]} 23. Bf5 {[%clk 0:01:38.9]} 1-0

[Event "*** SCC Grand Prix: Titled Tuesday Blitz"]
[Site "Chess.com"]
[Date "2020.08.11"]
[Round "3"]
[White "Mikasinski"]
[Black "KaspMagAlpha"]
[Result "1-0"]
[WhiteElo "2439"]
[BlackElo "2209"]
[TimeControl "180+1"]
[EndTime "10:27:09 PDT"]
[Termination "Mikasinski won on time"]

1. e4 {[%clk 0:03:00.9]} 1... c5 {[%clk 0:01:37]} 2. Nf3 {[%clk 0:03:00.7]} 2...
e6 {[%clk 0:01:32.7]} 3. d4 {[%clk 0:03:01]} 3... cxd4 {[%clk 0:01:32.3]} 4.
Nxd4 {[%clk 0:03:01.7]} 4... a6 {[%clk 0:01:32.3]} 5. Be2 {[%clk 0:03:01.8]}
5... Nf6 {[%clk 0:01:26.3]} 6. Nc3 {[%clk 0:02:58.1]} 6... Bb4 {[%clk
0:01:25.4]} 7. e5 {[%clk 0:02:49.5]} 7... Qa5 {[%clk 0:01:00.2]} 8. exf6 {[%clk
0:02:47.4]} 8... Bxc3+ {[%clk 0:01:00.1]} 9. bxc3 {[%clk 0:02:45.9]} 9... Qxc3+
{[%clk 0:00:59.7]} 10. Qd2 {[%clk 0:02:45.8]} 10... Qxa1 {[%clk 0:00:57.7]} 11.
fxg7 {[%clk 0:02:46.1]} 11... Rg8 {[%clk 0:00:57.4]} 12. c3 {[%clk 0:02:42.9]}
12... Qb1 {[%clk 0:00:40]} 13. Bd3 {[%clk 0:02:42.2]} 13... Qb6 {[%clk
0:00:36.1]} 14. Qh6 {[%clk 0:02:40]} 14... Qc5 {[%clk 0:00:30]} 15. Qxh7 {[%clk
0:02:17.3]} 15... Qe5+ {[%clk 0:00:25.6]} 16. Be3 {[%clk 0:02:14.8]} 16... Qxg7
{[%clk 0:00:19.3]} 17. Qxg7 {[%clk 0:02:12.1]} 17... Rxg7 {[%clk 0:00:19.1]} 18.
h4 {[%clk 0:02:09.9]} 18... f5 {[%clk 0:00:16.9]} 19. g3 {[%clk 0:02:06.7]}
19... b5 {[%clk 0:00:08.9]} 20. h5 {[%clk 0:02:03.8]} 20... Bb7 {[%clk
0:00:08.8]} 21. Rh2 {[%clk 0:02:01.4]} 1-0

[Event "*** SCC Grand Prix: Titled Tuesday Blitz"]
[Site "Chess.com"]
[Date "2020.08.11"]
[Round "3"]
[White "evgenyermolaev"]
[Black "MYMChessAcademy"]
[Result "1-0"]
[WhiteElo "2484"]
[BlackElo "2143"]
[TimeControl "180+1"]
[EndTime "10:27:12 PDT"]
[Termination "evgenyermolaev won by checkmate"]

1. d4 {[%clk 0:03:00.9]} 1... Nf6 {[%clk 0:02:59.5]} 2. Nc3 {[%clk 0:03:00.3]}
2... d5 {[%clk 0:02:59.2]} 3. e4 {[%clk 0:03:00.1]} 3... dxe4 {[%clk 0:02:58.6]}
4. Bg5 {[%clk 0:02:59.7]} 4... g6 {[%clk 0:02:56.8]} 5. Qd2 {[%clk 0:02:54.5]}
5... Bg7 {[%clk 0:02:56.2]} 6. O-O-O {[%clk 0:02:54.3]} 6... O-O {[%clk
0:02:55.2]} 7. h4 {[%clk 0:02:49]} 7... a5 {[%clk 0:02:42]} 8. h5 {[%clk
0:02:43.8]} 8... a4 {[%clk 0:02:41]} 9. a3 {[%clk 0:02:34]} 9... c6 {[%clk
0:02:38.2]} 10. Bh6 {[%clk 0:02:29.9]} 10... b5 {[%clk 0:02:34.9]} 11. hxg6
{[%clk 0:02:22.8]} 11... fxg6 {[%clk 0:02:33.6]} 12. Bxg7 {[%clk 0:02:23.1]}
12... Kxg7 {[%clk 0:02:34.1]} 13. Qh6+ {[%clk 0:02:23.4]} 13... Kg8 {[%clk
0:02:33.7]} 14. Nxe4 {[%clk 0:02:23.6]} 14... Rf7 {[%clk 0:02:23.6]} 15. Ng5
{[%clk 0:01:22.1]} 15... Rg7 {[%clk 0:02:20.5]} 16. Bd3 {[%clk 0:01:12.2]} 16...
b4 {[%clk 0:02:07.7]} 17. Bc4+ {[%clk 0:01:03.5]} 17... Kh8 {[%clk 0:02:03]} 18.
N1f3 {[%clk 0:00:41.6]} 18... bxa3 {[%clk 0:02:01.3]} 19. Ne5 {[%clk 0:00:42]}
19... axb2+ {[%clk 0:01:39.9]} 20. Kb1 {[%clk 0:00:41.5]} 20... Qf8 {[%clk
0:01:25.4]} 21. Nxg6+ {[%clk 0:00:41]} 21... Rxg6 {[%clk 0:01:21]} 22. Qxf8+
{[%clk 0:00:41.9]} 22... Ng8 {[%clk 0:01:20.7]} 23. Nf7# {[%clk 0:00:42.1]} 1-0

[Event "*** SCC Grand Prix: Titled Tuesday Blitz"]
[Site "Chess.com"]
[Date "2020.08.11"]
[Round "3"]
[White "mjray79"]
[Black "UCantHandleDenker"]
[Result "1-0"]
[WhiteElo "2371"]
[BlackElo "2565"]
[TimeControl "180+1"]
[EndTime "10:27:14 PDT"]
[Termination "mjray79 won by resignation"]

1. d4 {[%clk 0:03:00.9]} 1... d6 {[%clk 0:02:58.8]} 2. c4 {[%clk 0:03:00.7]}
2... Nf6 {[%clk 0:02:57.9]} 3. Nc3 {[%clk 0:02:57.2]} 3... Nbd7 {[%clk
0:02:56.7]} 4. e4 {[%clk 0:02:57]} 4... e5 {[%clk 0:02:56.3]} 5. d5 {[%clk
0:02:56.9]} 5... Be7 {[%clk 0:02:55.8]} 6. Nge2 {[%clk 0:02:56.8]} 6... O-O
{[%clk 0:02:54.6]} 7. Ng3 {[%clk 0:02:56.6]} 7... Ne8 {[%clk 0:02:50.8]} 8. Be3
{[%clk 0:02:46.4]} 8... Bg5 {[%clk 0:02:49.6]} 9. Qc1 {[%clk 0:02:41.9]} 9...
Bxe3 {[%clk 0:02:44.4]} 10. Qxe3 {[%clk 0:02:42.8]} 10... g6 {[%clk 0:02:43.1]}
11. Be2 {[%clk 0:02:41.3]} 11... Ng7 {[%clk 0:02:40.5]} 12. Rc1 {[%clk
0:02:38.6]} 12... a6 {[%clk 0:02:39.8]} 13. b4 {[%clk 0:02:37.1]} 13... f5
{[%clk 0:02:35.6]} 14. exf5 {[%clk 0:02:36.7]} 14... gxf5 {[%clk 0:02:35.2]} 15.
f4 {[%clk 0:02:36.7]} 15... Qh4 {[%clk 0:02:29.4]} 16. O-O {[%clk 0:02:33]}
16... e4 {[%clk 0:02:28.5]} 17. c5 {[%clk 0:02:29.5]} 17... Nf6 {[%clk 0:02:24]}
18. cxd6 {[%clk 0:02:19.1]} 18... cxd6 {[%clk 0:02:24.9]} 19. Na4 {[%clk
0:02:16.6]} 19... Bd7 {[%clk 0:02:04.2]} 20. Nb6 {[%clk 0:02:15.5]} 20... Rad8
{[%clk 0:02:04.2]} 21. Rc7 {[%clk 0:02:13.6]} 21... Bb5 {[%clk 0:02:03.1]} 22.
Rxg7+ {[%clk 0:02:07.7]} 22... Kh8 {[%clk 0:01:53.4]} 23. Bxb5 {[%clk
0:01:51.4]} 23... axb5 {[%clk 0:01:53]} 24. h3 {[%clk 0:01:41.8]} 24... Nxd5
{[%clk 0:01:46.2]} 25. Qd4 {[%clk 0:01:28.8]} 25... Qf6 {[%clk 0:01:39.3]} 26.
Qxf6 {[%clk 0:01:23.9]} 26... Rxf6 {[%clk 0:01:33.1]} 27. Nxd5 {[%clk
0:01:22.3]} 27... Kxg7 {[%clk 0:01:33]} 28. Nh5+ {[%clk 0:01:22.1]} 28... Kf7
{[%clk 0:01:32]} 29. Nhxf6 {[%clk 0:01:21.1]} 29... Rc8 {[%clk 0:01:32.1]} 30.
g4 {[%clk 0:01:18.6]} 30... Ke6 {[%clk 0:01:24.2]} 31. Re1 {[%clk 0:01:13.7]}
31... Rc2 {[%clk 0:01:19.8]} 32. gxf5+ {[%clk 0:01:12.6]} 32... Kf7 {[%clk
0:01:19.1]} 33. Rxe4 {[%clk 0:01:09.8]} 1-0

[Event "*** SCC Grand Prix: Titled Tuesday Blitz"]
[Site "Chess.com"]
[Date "2020.08.11"]
[Round "3"]
[White "Nafania1"]
[Black "natelleka"]
[Result "1-0"]
[WhiteElo "2474"]
[BlackElo "2095"]
[TimeControl "180+1"]
[EndTime "10:27:19 PDT"]
[Termination "Nafania1 won by resignation"]

1. e4 {[%clk 0:03:00.9]} 1... e5 {[%clk 0:02:59.4]} 2. Nf3 {[%clk 0:03:00.7]}
2... Nf6 {[%clk 0:02:59.4]} 3. Nxe5 {[%clk 0:02:58.4]} 3... Nxe4 {[%clk
0:02:59.3]} 4. Qe2 {[%clk 0:02:57.7]} 4... Qe7 {[%clk 0:02:59.4]} 5. Qxe4 {[%clk
0:02:57.8]} 5... d6 {[%clk 0:02:59.2]} 6. d4 {[%clk 0:02:58]} 6... dxe5 {[%clk
0:02:59.4]} 7. dxe5 {[%clk 0:02:58.4]} 7... Nc6 {[%clk 0:02:59.4]} 8. Nc3 {[%clk
0:02:58.4]} 8... Qxe5 {[%clk 0:02:55]} 9. Qxe5+ {[%clk 0:02:57.4]} 9... Nxe5
{[%clk 0:02:54.9]} 10. Nb5 {[%clk 0:02:52.4]} 10... Bd6 {[%clk 0:02:54.4]} 11.
Nxd6+ {[%clk 0:02:52.3]} 11... cxd6 {[%clk 0:02:54.4]} 12. Be3 {[%clk
0:02:49.2]} 12... O-O {[%clk 0:02:42.6]} 13. O-O-O {[%clk 0:02:49]} 13... Rd8
{[%clk 0:02:38.8]} 14. h3 {[%clk 0:02:45.4]} 14... Be6 {[%clk 0:02:37.6]} 15.
Kb1 {[%clk 0:02:45]} 15... Rac8 {[%clk 0:02:11.1]} 16. b3 {[%clk 0:02:44.5]}
16... b6 {[%clk 0:02:00.4]} 17. Ba6 {[%clk 0:02:37.5]} 17... Rc7 {[%clk
0:01:57.8]} 18. Rhe1 {[%clk 0:02:35.2]} 18... Bc8 {[%clk 0:01:41.6]} 19. Bf1
{[%clk 0:02:29.7]} 19... Bf5 {[%clk 0:01:38.5]} 20. Rd2 {[%clk 0:02:21.1]} 20...
Rdc8 {[%clk 0:01:35.1]} 21. Rc1 {[%clk 0:02:21.2]} 21... Kf8 {[%clk 0:01:28.8]}
22. Kb2 {[%clk 0:02:21.3]} 22... Ke7 {[%clk 0:01:27.2]} 23. c4 {[%clk
0:02:10.3]} 23... b5 {[%clk 0:01:14.2]} 24. f4 {[%clk 0:02:10.4]} 24... bxc4
{[%clk 0:01:10.4]} 25. fxe5 {[%clk 0:02:01.9]} 25... c3+ {[%clk 0:01:06.8]} 26.
Rxc3 {[%clk 0:02:01.9]} 26... Rxc3 {[%clk 0:01:04.1]} 27. exd6+ {[%clk
0:02:02.2]} 27... Kd8 {[%clk 0:00:58]} 28. Bxa7 {[%clk 0:01:56]} 28... Rc2+
{[%clk 0:00:56.1]} 29. Rxc2 {[%clk 0:01:56.4]} 29... Rxc2+ {[%clk 0:00:55.5]}
30. Ka3 {[%clk 0:01:56.6]} 30... Rf2 {[%clk 0:00:35.9]} 31. Bxf2 {[%clk
0:01:55.6]} 1-0

[Event "*** SCC Grand Prix: Titled Tuesday Blitz"]
[Site "Chess.com"]
[Date "2020.08.11"]
[Round "3"]
[White "Caterpiller35"]
[Black "BikingBrian"]
[Result "1-0"]
[WhiteElo "2413"]
[BlackElo "2192"]
[TimeControl "180+1"]
[EndTime "10:27:19 PDT"]
[Termination "Caterpiller35 won by resignation"]

1. d4 {[%clk 0:02:59.5]} 1... Nf6 {[%clk 0:02:59]} 2. Bg5 {[%clk 0:02:59.1]}
2... c5 {[%clk 0:02:59]} 3. d5 {[%clk 0:02:58.2]} 3... Ne4 {[%clk 0:02:59]} 4.
Bc1 {[%clk 0:02:55.8]} 4... g6 {[%clk 0:02:53.4]} 5. f3 {[%clk 0:02:54.9]} 5...
Nf6 {[%clk 0:02:53.5]} 6. e4 {[%clk 0:02:55]} 6... d6 {[%clk 0:02:54.2]} 7. Nc3
{[%clk 0:02:54.8]} 7... Bg7 {[%clk 0:02:54.2]} 8. Bb5+ {[%clk 0:02:54.5]} 8...
Bd7 {[%clk 0:02:52.4]} 9. a4 {[%clk 0:02:54.1]} 9... O-O {[%clk 0:02:52]} 10.
Bxd7 {[%clk 0:02:52.1]} 10... Nbxd7 {[%clk 0:02:51.1]} 11. Nh3 {[%clk
0:02:49.3]} 11... a6 {[%clk 0:02:51.1]} 12. O-O {[%clk 0:02:49.1]} 12... Rb8
{[%clk 0:02:51.8]} 13. Qe2 {[%clk 0:02:49.3]} 13... Qc7 {[%clk 0:02:43]} 14. f4
{[%clk 0:02:47.2]} 14... c4 {[%clk 0:02:39.6]} 15. Kh1 {[%clk 0:02:38.5]} 15...
b5 {[%clk 0:02:39.3]} 16. axb5 {[%clk 0:02:37.9]} 16... axb5 {[%clk 0:02:40.2]}
17. Ra6 {[%clk 0:02:32.3]} 17... Rb6 {[%clk 0:02:33.5]} 18. Rxb6 {[%clk
0:02:31]} 18... Qxb6 {[%clk 0:02:27.1]} 19. Be3 {[%clk 0:02:30.9]} 19... Qb7
{[%clk 0:02:20]} 20. Ra1 {[%clk 0:02:26.9]} 20... Ra8 {[%clk 0:02:08.2]} 21.
Rxa8+ {[%clk 0:02:25.3]} 21... Qxa8 {[%clk 0:02:09.1]} 22. Nxb5 {[%clk
0:02:24.7]} 22... Qa1+ {[%clk 0:02:08.8]} 23. Bg1 {[%clk 0:02:24.2]} 23... Nc5
{[%clk 0:01:41.6]} 24. e5 {[%clk 0:02:13.6]} 24... Nxd5 {[%clk 0:01:08.6]} 25.
exd6 {[%clk 0:02:08.3]} 25... exd6 {[%clk 0:01:02.4]} 26. Qe8+ {[%clk 0:02:05]}
26... Bf8 {[%clk 0:01:02]} 27. Nxd6 {[%clk 0:02:05.9]} 1-0

[Event "*** SCC Grand Prix: Titled Tuesday Blitz"]
[Site "Chess.com"]
[Date "2020.08.11"]
[Round "3"]
[White "Anton_Demchenko"]
[Black "AliKa2810"]
[Result "1-0"]
[WhiteElo "2831"]
[BlackElo "2613"]
[TimeControl "180+1"]
[EndTime "10:27:33 PDT"]
[Termination "Anton_Demchenko won by resignation"]

1. d4 {[%clk 0:03:00.9]} 1... Nf6 {[%clk 0:02:59.6]} 2. Nf3 {[%clk 0:03:01.6]}
2... d5 {[%clk 0:02:58.8]} 3. Bf4 {[%clk 0:03:01.4]} 3... e6 {[%clk 0:02:58.4]}
4. e3 {[%clk 0:03:01.9]} 4... Bd6 {[%clk 0:02:58.4]} 5. Ne5 {[%clk 0:03:02.6]}
5... c5 {[%clk 0:02:58.3]} 6. Nd2 {[%clk 0:03:02.7]} 6... O-O {[%clk 0:02:57.8]}
7. c3 {[%clk 0:03:02.7]} 7... Nc6 {[%clk 0:02:57.2]} 8. Bd3 {[%clk 0:03:02.8]}
8... Qc7 {[%clk 0:02:55.6]} 9. Ndf3 {[%clk 0:03:03.1]} 9... Nd7 {[%clk
0:02:53.5]} 10. Ng5 {[%clk 0:03:02.8]} 10... h6 {[%clk 0:02:44.1]} 11. Bh7+
{[%clk 0:02:42.4]} 11... Kh8 {[%clk 0:02:42.6]} 12. Nexf7+ {[%clk 0:02:42.6]}
12... Rxf7 {[%clk 0:02:41.1]} 13. Nxf7+ {[%clk 0:02:42.7]} 13... Kxh7 {[%clk
0:02:41.5]} 14. Bxd6 {[%clk 0:02:29.4]} 14... Qb6 {[%clk 0:02:39.9]} 15. Qb3
{[%clk 0:01:53.9]} 15... Kg8 {[%clk 0:02:16.8]} 16. Qxb6 {[%clk 0:01:52.7]}
16... Nxb6 {[%clk 0:02:02.7]} 17. Ne5 {[%clk 0:01:51.9]} 17... Nxe5 {[%clk
0:01:56.8]} 18. Bxe5 {[%clk 0:01:52.8]} 18... Bd7 {[%clk 0:01:52.7]} 19. b3
{[%clk 0:01:50.6]} 19... Rc8 {[%clk 0:01:48.7]} 20. Kd2 {[%clk 0:01:50.9]} 20...
a5 {[%clk 0:01:47.4]} 21. dxc5 {[%clk 0:01:48.6]} 21... Rxc5 {[%clk 0:01:45.3]}
22. Bd4 {[%clk 0:01:48.3]} 22... Rc6 {[%clk 0:01:45.7]} 23. Bxb6 {[%clk
0:01:45.8]} 23... Rxb6 {[%clk 0:01:46.3]} 24. f4 {[%clk 0:01:45.3]} 24... a4
{[%clk 0:01:42.3]} 25. Rab1 {[%clk 0:01:44.7]} 25... a3 {[%clk 0:01:42.3]} 26.
Rhd1 {[%clk 0:01:39.5]} 26... Be8 {[%clk 0:01:41.3]} 27. Rbc1 {[%clk 0:01:36.6]}
27... Bg6 {[%clk 0:01:40]} 28. Ke1 {[%clk 0:01:36.8]} 28... Be4 {[%clk
0:01:39.8]} 29. g3 {[%clk 0:01:33.5]} 29... Kf7 {[%clk 0:01:39.3]} 30. Rd4
{[%clk 0:01:33.7]} 30... Ra6 {[%clk 0:01:33.3]} 31. Ra4 {[%clk 0:01:31.9]} 31...
Rxa4 {[%clk 0:01:18.4]} 32. bxa4 {[%clk 0:01:32.8]} 32... Ke7 {[%clk 0:01:18.8]}
33. c4 {[%clk 0:01:28.1]} 33... Kd6 {[%clk 0:01:18]} 34. cxd5 {[%clk 0:01:25.5]}
34... Bxd5 {[%clk 0:01:08.3]} 35. Rc3 {[%clk 0:01:25.7]} 35... Bxa2 {[%clk
0:01:08.3]} 36. Rxa3 {[%clk 0:01:26.6]} 36... Bd5 {[%clk 0:01:07.5]} 37. Rc3
{[%clk 0:01:25]} 37... e5 {[%clk 0:01:03.3]} 38. Kd2 {[%clk 0:01:24.7]} 38...
exf4 {[%clk 0:01:02.8]} 39. exf4 {[%clk 0:01:25.3]} 1-0

[Event "*** SCC Grand Prix: Titled Tuesday Blitz"]
[Site "Chess.com"]
[Date "2020.08.11"]
[Round "3"]
[White "manuellarrea"]
[Black "stolencandy13"]
[Result "1-0"]
[WhiteElo "2235"]
[BlackElo "2424"]
[TimeControl "180+1"]
[EndTime "10:27:34 PDT"]
[Termination "manuellarrea won by resignation"]

1. e4 {[%clk 0:03:00.9]} 1... c6 {[%clk 0:03:00]} 2. d4 {[%clk 0:02:59.6]} 2...
d5 {[%clk 0:03:00.9]} 3. exd5 {[%clk 0:02:59.9]} 3... cxd5 {[%clk 0:03:01.8]} 4.
c4 {[%clk 0:03:00.2]} 4... Nf6 {[%clk 0:03:00.4]} 5. Nc3 {[%clk 0:03:00.4]} 5...
e6 {[%clk 0:02:59.9]} 6. Nf3 {[%clk 0:03:00]} 6... Bb4 {[%clk 0:02:46.8]} 7.
cxd5 {[%clk 0:02:59.5]} 7... Nxd5 {[%clk 0:02:46.3]} 8. Bd2 {[%clk 0:02:59.9]}
8... Nc6 {[%clk 0:02:45.8]} 9. Bd3 {[%clk 0:02:59.3]} 9... O-O {[%clk
0:02:43.8]} 10. O-O {[%clk 0:02:58.9]} 10... Be7 {[%clk 0:02:39.3]} 11. a3
{[%clk 0:02:57.8]} 11... b6 {[%clk 0:02:37.8]} 12. Re1 {[%clk 0:02:57.3]} 12...
Bb7 {[%clk 0:02:37.8]} 13. Qe2 {[%clk 0:02:54.9]} 13... Rc8 {[%clk 0:02:29.6]}
14. Rad1 {[%clk 0:02:53.5]} 14... Nxc3 {[%clk 0:02:27.2]} 15. bxc3 {[%clk
0:02:43.9]} 15... Bf6 {[%clk 0:02:17.7]} 16. Qe4 {[%clk 0:02:39.2]} 16... g6
{[%clk 0:02:15.1]} 17. h4 {[%clk 0:02:36.8]} 17... Qd5 {[%clk 0:02:10.7]} 18.
Qg4 {[%clk 0:02:32.7]} 18... Ne7 {[%clk 0:01:23.1]} 19. Be4 {[%clk 0:02:28.8]}
19... Qd7 {[%clk 0:01:20.7]} 20. Bd3 {[%clk 0:02:18.5]} 20... Nf5 {[%clk
0:01:18.6]} 21. h5 {[%clk 0:02:16.5]} 21... Qd6 {[%clk 0:01:03]} 22. hxg6 {[%clk
0:02:12.9]} 22... hxg6 {[%clk 0:01:03.9]} 23. Qh3 {[%clk 0:02:00.3]} 23... Bxf3
{[%clk 0:00:40.8]} 24. Qxf3 {[%clk 0:01:55.9]} 24... Qc6 {[%clk 0:00:32.4]} 25.
Be4 {[%clk 0:01:51.5]} 25... Qb5 {[%clk 0:00:28.2]} 26. g4 {[%clk 0:01:47.7]}
26... Nd6 {[%clk 0:00:27.6]} 27. Qxf6 {[%clk 0:01:46.8]} 27... Nxe4 {[%clk
0:00:20.1]} 28. Rxe4 {[%clk 0:01:46.2]} 28... Qd3 {[%clk 0:00:21]} 29. Bh6
{[%clk 0:01:42.9]} 29... Qxd1+ {[%clk 0:00:20.3]} 30. Kg2 {[%clk 0:01:41.1]} 1-0

[Event "*** SCC Grand Prix: Titled Tuesday Blitz"]
[Site "Chess.com"]
[Date "2020.08.11"]
[Round "3"]
[White "queen_iryna"]
[Black "denispopov"]
[Result "1-0"]
[WhiteElo "2253"]
[BlackElo "1843"]
[TimeControl "180+1"]
[EndTime "10:27:44 PDT"]
[Termination "queen_iryna won by resignation"]

1. Nf3 {[%clk 0:03:00.9]} 1... d5 {[%clk 0:02:34.9]} 2. c4 {[%clk 0:02:59]} 2...
e6 {[%clk 0:02:33.9]} 3. g3 {[%clk 0:02:57]} 3... Nf6 {[%clk 0:02:33.7]} 4. Bg2
{[%clk 0:02:55.8]} 4... b6 {[%clk 0:02:34]} 5. O-O {[%clk 0:02:53.9]} 5... Bb7
{[%clk 0:02:33.4]} 6. b3 {[%clk 0:02:54.2]} 6... Be7 {[%clk 0:02:32.9]} 7. Bb2
{[%clk 0:02:54.3]} 7... O-O {[%clk 0:02:33.4]} 8. d3 {[%clk 0:02:54.6]} 8...
Nbd7 {[%clk 0:02:33.1]} 9. Nbd2 {[%clk 0:02:54.8]} 9... Rc8 {[%clk 0:02:29.7]}
10. Rc1 {[%clk 0:02:42.8]} 10... dxc4 {[%clk 0:02:27.2]} 11. bxc4 {[%clk
0:02:30]} 11... c5 {[%clk 0:02:23.3]} 12. Rc2 {[%clk 0:02:28.3]} 12... Nb8
{[%clk 0:02:20.5]} 13. Qa1 {[%clk 0:02:26.9]} 13... Na6 {[%clk 0:02:19.3]} 14.
a3 {[%clk 0:02:24.6]} 14... Nc7 {[%clk 0:02:11.1]} 15. Rb1 {[%clk 0:02:20.4]}
15... Ba8 {[%clk 0:02:06.7]} 16. Bc3 {[%clk 0:02:00.3]} 16... Rb8 {[%clk
0:01:51.8]} 17. Ne5 {[%clk 0:01:55.5]} 17... Bxg2 {[%clk 0:01:49.2]} 18. Kxg2
{[%clk 0:01:56.4]} 18... Qd6 {[%clk 0:01:47.1]} 19. Ndf3 {[%clk 0:01:47.7]}
19... Na6 {[%clk 0:01:29]} 20. Qb2 {[%clk 0:01:40.8]} 20... Nc7 {[%clk 0:01:27]}
21. h4 {[%clk 0:01:33.5]} 21... a6 {[%clk 0:01:21]} 22. a4 {[%clk 0:01:29.8]}
22... Rfc8 {[%clk 0:01:11.5]} 23. Qc1 {[%clk 0:01:15.5]} 23... Bf8 {[%clk
0:00:54.8]} 24. Qg5 {[%clk 0:01:05]} 24... h6 {[%clk 0:00:51.5]} 25. Qf4 {[%clk
0:01:02.5]} 25... Nh5 {[%clk 0:00:46.5]} 26. Qxf7+ {[%clk 0:01:01.8]} 1-0